[Event "Romanian Team Blitz Open 2022"]
[Site "Sebes"]
[Date "2022.12.04"]
[Round "1.1"]
[White "Nastase, Robert-Paul"]
[Black "Lupulescu, Constantin"]
[Result "0-1"]
[ECO "B23"]
[WhiteElo "2229"]
[BlackElo "2591"]
[Annotator "TA"]
[PlyCount "82"]
[EventDate "2022.12.04"]
[EventType "blitz"]
[EventCountry "ROU"]
[SourceTitle "playchess.com"]
[Source "ChessBase"]
[SourceQuality "1"]
[TimeControl "180+2"]

{[%evp 9,82,0,6,0,38,33,36,34,32,0,0,0,11,0,11,-146,-147,-358,-48,-647,-133,-136,-127,-285,-288,-290,-284,-297,-279,-274,-129,-261,-255,-261,-268,-268,-264,-258,-257,-450,-262,-246,-233,-205,-210,-207,-208,-178,-207,-550,-550,-521,-499,-566,-558,-507,-386,-416,-164,-151,0,-409,-352,-572,-571,-5222,-675,-1312,-1134,-29984,-29984,-29989,-29990,-29990,-29989]} 1. e4 {[%emt 0:00:01]} c5 {[%emt 0:00:01]} 2. Nc3 {[%emt 0:00:01]} d6 {[%emt 0:00:09]} 3. d4 {[%emt 0:00:01]} cxd4 4. Qxd4 {[%emt 0:00:01]} Nc6 {[%emt 0:00:08]} 5. Qd2 {[%emt 0:00:01]} g6 {[%emt 0:00:13]} 6. b3 {[%emt 0:00:01] B23: Closed Sicilian: Lines without g3.} Bg7 {[%emt 0:00:08]} (6... Bh6 $5 {[%cal Rh6d2]} 7. f4 Nf6 $11) 7. Bb2 $1 {[%emt 0:00:02]} Nf6 {[%emt 0:00:02][%cal Of6e4]} 8. O-O-O {[%emt 0:00:05] White is slightly better.} O-O {[%emt 0:00:02]} 9. f4 {[%emt 0:00:27]} a5 {[%emt 0:00:09][%cal Oa5a4]} 10. a4 {[%emt 0:00:25]} Bg4 {[%emt 0:00:08] [#] Against h3} 11. Be2 $146 {[%emt 0:00:07]} ({Predecessor:} 11. Nf3 Rc8 12. Kb1 Nb4 13. Bb5 Qb6 14. Rhe1 Rc5 15. e5 dxe5 16. Rxe5 Rfc8 17. Rxe7 {0-1 (71) Jones,G (2670)-Bodnaruk,A (2411) Chess.com INT 2020}) 11... Rc8 {[%emt 0:00:06]} 12. Nf3 $2 {[%emt 0:00:06]} ({White should try} 12. Bxg4 $11 Nxg4 13. h3) 12... Nb4 $17 {[%emt 0:00:06][%cal Oc8c3]} 13. e5 $2 {[%emt 0:00:34] [#]} (13. Kb1 $17) 13... Nh5 $2 {[%emt 0:00:20]} (13... Rxc3 $1 $19 {[%mdl 512]} 14. Bxc3 Ne4 15. Bxb4 Nxd2 16. Bxd2 dxe5 17. fxe5 Bxf3 18. Bxf3 Qd4) 14. exd6 $2 {[%emt 0:00:21][%mdl 8192]} (14. Kb1 $15) 14... Qxd6 $2 {[%emt 0:00:09]} (14... Bxc3 $19 {and Black stays clearly on top.} 15. Bxc3 Rxc3 $1 {[%mdl 512]}) 15. Qxd6 {[%emt 0:00:21]} exd6 {[%emt 0:00:02]} 16. Bc4 $2 {[%emt 0:00:04]} (16. Ne1 $17 {was the only chance.} Be6 17. f5 Bxf5 18. Bc4) 16... Nxf4 $19 {[%emt 0:00:10][%cal Bh5f4,Bf4g2,Bg2e3][%mdl 32]} 17. Rxd6 {[%emt 0:00:06]} Nxg2 {[%emt 0:00:07]} 18. Nd2 {[%emt 0:00:32]} Ne3 {[%emt 0:00:05]} 19. Nce4 {[%emt 0:00:02]} Be6 {[%emt 0:00:36]} (19... Nexc2 $2 20. Nf6+ Bxf6 21. Bxf6 $19) (19... Bf5 $19 {has better winning chances. Strongly threatening ...Bxe4.} 20. Bxg7 Kxg7) 20. Rxe6 {[%emt 0:00:17]} (20. Bxg7 $17 {is the only way for White.} Kxg7 21. Bxe6 Rxc2+ 22. Kb1 fxe6 23. Rxe6) 20... Bxb2+ {[%emt 0:00:14]} (20... fxe6 21. Bxe6+ Kh8 22. Bxc8 Rxc8 23. Bxg7+ Kxg7 24. c3 $11) 21. Kxb2 {[%emt 0:00:04] Black must now prevent Nf6+.} Nxc4+ {[%emt 0:00:01]} ({Inferior is} 21... fxe6 22. Bxe6+ Kg7 23. Bxc8 Rxc8 24. c3 Nd3+ 25. Kb1 $11) 22. Nxc4 {[%emt 0:00:01]} fxe6 {[%emt 0:00:01]} 23. Re1 {[%emt 0:00:03]} b6 {[%emt 0:00:09]} 24. Ned6 $2 {[%emt 0:00:02] [#]} (24. Re2) 24... Rc6 {[%emt 0:00:04]} (24... Rf2 $142 $1 25. Nxc8 Nd3+ 26. Kc3 Nxe1) 25. Rxe6 {[%emt 0:00:02]} Rf2 {[%emt 0:00:05]} 26. Re8+ {[%emt 0:00:04] [#]} Kg7 $1 {[%emt 0:00:10]} 27. Re7+ {[%emt 0:00:01]} Kh6 {[%emt 0:00:15]} 28. Nf7+ {[%emt 0:00:01]} Kh5 {[%emt 0:00:00] aiming for ...Rcf6.} 29. Re5+ $2 {[%emt 0:00:01]} (29. Nfe5 Rcf6 30. Rxh7+ Kg5 31. Na3 (31. h4+ $2 Kf4 $19)) 29... Kh4 {[%emt 0:00:02]} 30. Re4+ {[%emt 0:00:02]} Kh3 {[%emt 0:00:03]} 31. Nfe5 {[%emt 0:00:03]} Rxc2+ {[%emt 0:00:02]} 32. Kb1 {[%emt 0:00:01]} R6xc4 {[%emt 0:00:02]} 33. Nxc4 {[%emt 0:00:02][%mdl 4096] Endgame KRN-KRN} Rc3 $2 {[%emt 0:00:06]} (33... Kxh2 34. Rh4+ Kg3 35. Rxh7 $17) (33... Rxh2 34. Re3+ Kg4) 34. Kb2 {[%emt 0:00:01]} Rc2+ {[%emt 0:00:01]} (34... Rf3 $17 35. Nxb6 h5) 35. Kb1 {[%emt 0:00:01]} Rxh2 {[%emt 0:00:01]} ({Weaker is} 35... Kxh2 36. Rh4+ Kg3 37. Rxh7 $17) 36. Nxb6 $2 {[%emt 0:00:01]} (36. Re6 g5 37. Rh6+ Kg3 38. Rxb6) 36... g5 {[%emt 0:00:01] Hoping for ...g4.} 37. Re5 {[%emt 0:00:01]} g4 {[%emt 0:00:01]} (37... Rh1+ $142 38. Kb2 Nd3+ 39. Kc3 Nxe5) 38. Rxa5 {[%emt 0:00:04]} g3 {[%emt 0:00:01][%cal Bg4g3,Bg3g2][%mdl 32]} 39. Rh5+ {[%emt 0:00:04]} Kg4 {[%emt 0:00:01] Black mates.} 40. Rb5 {[%emt 0:00:05]} g2 {[%emt 0:00:02][%cal Rg2g1]} 41. Rxb4+ {[%emt 0:00:02]} Kg3 {[%emt 0:00:00] Weighted Error Value: White=1.08/Black=0.63} 0-1

[Event "Romanian Team Blitz Open 2022"]
[Site "Sebes"]
[Date "2022.12.04"]
[Round "1.2"]
[White "Jianu, Vlad-Cristian"]
[Black "Daianu, Cristian-Clement"]
[Result "1-0"]
[ECO "A16"]
[WhiteElo "2516"]
[BlackElo "2189"]
[Annotator "TA"]
[PlyCount "49"]
[EventDate "2022.12.04"]
[EventType "blitz"]
[EventCountry "ROU"]
[SourceTitle "playchess.com"]
[Source "ChessBase"]
[SourceQuality "1"]
[TimeControl "180+2"]

{[%evp 12,49,10,4,47,0,0,-19,5,8,-4,2,18,12,11,6,25,40,50,45,160,166,208,204,259,34,222,217,203,213,195,192,227,160,151,123,119,120,195,190]} 1. Nf3 {[%emt 0:00:01]} Nf6 {[%emt 0:00:07]} 2. c4 {[%emt 0:00:00]} g6 {[%emt 0:00:05]} 3. Nc3 {[%emt 0:00:01]} d5 {[%emt 0:00:01]} 4. cxd5 {[%emt 0:00:02]} Nxd5 {[%emt 0:00:01]} 5. g3 {[%emt 0:00:01]} Bg7 {[%emt 0:00:01]} 6. Bg2 {[%emt 0:00:01]} O-O {[%emt 0:00:04]} 7. O-O {[%emt 0:00:01]} a5 {[%emt 0:00:07][%cal Ba7a5,Ba5a4][%mdl 32] A16: English Opening: 1...Nf6 with ...d5.} 8. Qb3 {[%emt 0:00:32]} (8. d4 $14 {feels stronger.}) 8... Nb6 $11 {[%emt 0:00:04]} 9. d3 {[%emt 0:00:10]} a4 {[%emt 0:00:13] The position is equal.} (9... Nc6 {is interesting.} 10. Bd2 e5 11. Ne4 a4) 10. Qc2 {[%emt 0:00:02] [#]} Nc6 $146 {[%emt 0:00:10]} ({Predecessor:} 10... Na6 11. Bd2 Nb4 12. Qc1 Re8 13. Bh6 Bh8 14. d4 N4d5 15. e4 Nxc3 16. bxc3 Nc4 {0-1 (39) Schinzel,W-Zoltek,T Zielona Gora 1974}) 11. Bf4 {[%emt 0:00:05]} Ra5 {[%emt 0:00:25]} 12. Rac1 {[%emt 0:00:01]} Bg4 {[%emt 0:00:05]} 13. Qd2 {[%emt 0:00:11]} a3 {[%emt 0:01:13]} (13... e5 {looks sharper.} 14. Bh6 Bxh6 15. Qxh6 f6) 14. b3 {[%emt 0:00:10]} Rh5 {[%emt 0:00:22] Inhibits h3.} 15. h4 {[%emt 0:00:14]} h6 {[%emt 0:00:04] [#]} (15... Qd7 $14) 16. Nh2 $1 $16 {[%emt 0:00:20]} Bd7 {[%emt 0:00:15] [#]} 17. Bf3 $1 {[%emt 0:00:03] Inhibits e5.} Rf5 {[%emt 0:00:13]} 18. Ng4 $2 {[%emt 0:00:08]} (18. Bxh6 $18 {Threatens to win with Rfe1.} f6 19. Rfd1) 18... h5 $2 {[%emt 0:00:02]} (18... Nd4 $1 $14) 19. Nh6+ $18 {[%emt 0:00:01]} Bxh6 {[%emt 0:00:03]} 20. Bxh6 {[%emt 0:00:02]} Re8 {[%emt 0:00:00][%cal Of5f3]} 21. Bg2 {[%emt 0:00:03] This pair of bishops is nice.} Bc8 {[%emt 0:00:06]} 22. Ne4 {[%emt 0:00:06]} Nd4 {[%emt 0:00:01]} 23. Rfe1 {[%emt 0:00:15]} c6 {[%emt 0:00:02]} 24. Qb4 {[%emt 0:00:13]} Ne6 {[%emt 0:00:06]} (24... Nb5 $16 25. Nc5 Rf6) 25. Qxa3 {[%emt 0:01:09] Weighted Error Value: White=0.29 (precise) /Black=0.39} 1-0

[Event "Romanian Team Blitz Open 2022"]
[Site "Sebes"]
[Date "2022.12.04"]
[Round "1.3"]
[White "Vrencian, Lehel"]
[Black "Parligras, Mircea-Emilian"]
[Result "1/2-1/2"]
[ECO "B50"]
[WhiteElo "2226"]
[BlackElo "2567"]
[Annotator "TA"]
[PlyCount "74"]
[EventDate "2022.12.04"]
[EventType "blitz"]
[EventCountry "ROU"]
[SourceTitle "playchess.com"]
[Source "ChessBase"]
[SourceQuality "1"]
[TimeControl "180+2"]

{[%evp 9,74,5,22,-34,27,23,26,25,36,15,20,14,75,56,65,58,150,0,32,43,72,60,86,85,107,113,200,196,179,181,183,194,195,117,223,223,198,138,275,252,270,115,97,112,147,0,116,122,106,0,0,0,0,0,0,0,0,0,0,0,0,0,0,0,0,0,0]} 1. e4 {[%emt 0:00:01]} c5 {[%emt 0:00:01]} 2. Nf3 {[%emt 0:00:01]} d6 {[%emt 0:00:01]} 3. Bc4 {[%emt 0:00:03][%cal Bf1c4,Bc4b3,Bb3c2][%mdl 32]} Nc6 {[%emt 0:00:04]} 4. O-O {[%emt 0:00:01]} Nf6 {[%emt 0:00:02]} 5. Re1 {[%emt 0:00:02]} e6 {[%emt 0:00:01]} 6. c3 {[%emt 0:00:02] [#] B50: Sicilian: 2...d6, Miscellaneous.} (6. Bb3 $11) 6... Be7 {[%emt 0:00:03]} (6... Nxe4 $1 $15 7. Rxe4 (7. Bxe6 fxe6) 7... d5 8. Bxd5 Qxd5) 7. Bb3 $11 {[%emt 0:00:01]} O-O {[%emt 0:00:03]} 8. d4 {[%emt 0:00:01] White has an edge.} d5 {[%emt 0:00:06]} 9. e5 {[%emt 0:00:03]} Nd7 {[%emt 0:00:03] [#]} 10. a3 $146 {[%emt 0:00:04]} ({Predecessor:} 10. Bc2 b5 11. Qd3 f5 12. exf6 Nxf6 13. Qxb5 Bd7 14. Qe2 cxd4 15. cxd4 Qb6 16. Be3 {0-1 (40) Seul,G (2374)-Butti,E (2065) Chess.com INT 2021}) 10... b5 {[%emt 0:00:07]} (10... f6 $11) 11. Bc2 $1 $16 {[%emt 0:00:04]} c4 {[%emt 0:00:19] Against Qd3} 12. h4 {[%emt 0:00:08]} h6 {[%emt 0:00:13] [#] Against Ng5} ({Better is} 12... f6 $14) 13. h5 {[%emt 0:00:10]} (13. Ng5 $1 $16 {[%mdl 512]}) 13... a5 {[%emt 0:00:02]} 14. Be3 {[%emt 0:00:10]} Re8 {[%emt 0:00:25]} 15. Qc1 {[%emt 0:00:21][%cal Oe3h6]} Bf8 {[%emt 0:00:02]} 16. Nbd2 {[%emt 0:00:01]} Rb8 {[%emt 0:00:06]} 17. Bb1 {[%emt 0:00:10]} b4 {[%emt 0:00:15]} (17... f6 $16 {was called for.}) 18. axb4 $18 {[%emt 0:00:07]} ({Don't play} 18. Qc2 f5) 18... axb4 {[%emt 0:00:02]} 19. Qc2 {[%emt 0:00:01][%csl Gb1][%cal Rc2h7]} f5 {[%emt 0:00:01]} 20. exf6 {[%emt 0:00:01]} Nxf6 {[%emt 0:00:01]} 21. Bf4 {[%emt 0:00:16] Against Qc7} (21. Ne5 $1 $18 {[%cal Re5c6]} Ne7 22. g4 (22. Ra7 Qb6 $16)) 21... Rb7 {[%emt 0:00:11]} (21... b3 $16 22. Qd1 (22. Qg6 Ne7 $14) 22... Bd6) 22. Ne5 $1 {[%emt 0:00:02]} Ne7 {[%emt 0:00:09]} 23. g4 {[%emt 0:00:29]} (23. Ra8 $18) 23... bxc3 {[%emt 0:00:11]} (23... Qb6 $16 24. Ndf3 bxc3) 24. bxc3 {[%emt 0:00:02]} Qb6 {[%emt 0:00:01]} 25. g5 {[%emt 0:00:36]} (25. Qd1 $18) 25... hxg5 $16 {[%emt 0:00:02]} 26. Bxg5 {[%emt 0:00:01]} Qb2 {[%emt 0:00:08]} 27. Qd1 {[%emt 0:00:01]} Nf5 {[%emt 0:00:16] [#]} (27... Qxa1 $11 {keeps the balance.} 28. h6 Ng6 29. Bxg6 Qxd1 30. Rxd1 Bd6 31. Bxe8 (31. hxg7 Bxe5 32. Bxf6 Bxf6 $17) 31... Nxe8) 28. Bxf5 $1 {[%emt 0:00:33]} exf5 {[%emt 0:00:03] [#]} 29. Bxf6 {[%emt 0:00:13]} (29. h6 $1 $16 {Threatens to win with Rb1.} Qxc3 30. Re3 Qxd4 31. Bxf6 gxf6 32. Nc6) 29... gxf6 $11 {[%emt 0:00:02] The position is equal.} 30. Ng6 {[%emt 0:00:06]} Rxe1+ {[%emt 0:00:10]} 31. Qxe1 {[%emt 0:00:00] Ra8 is the strong threat.} Qxc3 {[%emt 0:00:02]} 32. Ra8 {[%emt 0:00:03]} Qxd4 {[%emt 0:00:35] Strongly threatening ...Qg4+.} 33. Rxc8 {[%emt 0:00:04] Chess con chili.} Qg4+ {[%emt 0:00:01]} 34. Kf1 {[%emt 0:00:04]} Qh3+ {[%emt 0:00:01]} 35. Kg1 {[%emt 0:00:03]} Qg4+ {[%emt 0:00:01]} 36. Kf1 {[%emt 0:00:02]} Qh3+ {[%emt 0:00:01]} 37. Kg1 {[%emt 0:00:03]} Qg4+ {[%emt 0:00:02] White really could win this.   Weighted Error Value: White=0.42/Black=0.34} 1/2-1/2

[Event "Romanian Team Blitz Open 2022"]
[Site "Sebes"]
[Date "2022.12.04"]
[Round "1.4"]
[White "Gavrilescu, David"]
[Black "Craciun, Sasha-Matei"]
[Result "1-0"]
[ECO "C27"]
[WhiteElo "2523"]
[BlackElo "2001"]
[Annotator "TA"]
[PlyCount "109"]
[EventDate "2022.12.04"]
[EventType "blitz"]
[EventCountry "ROU"]
[SourceTitle "playchess.com"]
[Source "ChessBase"]
[SourceQuality "1"]
[TimeControl "180+2"]

{[%evp 10,109,-12,-9,-4,-26,15,39,46,0,50,12,43,0,47,37,69,44,52,50,47,5,37,-3,-10,0,0,-137,-132,-135,-122,-135,-117,-189,-116,-108,-97,-133,-99,-133,-87,-137,-145,-152,-108,-98,-100,-100,-112,-151,-122,-119,-116,-114,-97,-130,99,-37,0,0,0,0,-10,-112,-11,-95,-94,-127,-90,-102,-88,-6491,-5687,-2029,-1176,-1331,-1285,-6695,-6416,-29967,-29968,-29964,-29963,-1619,-1039,-1145,-930,-1758,-1655,-1254,-1105,-5569,-5310,-5185,-2693,-2692,-2692,-1149,-66,-2337,29988,29989]} 1. e4 {[%emt 0:00:01]} e5 {[%emt 0:00:02]} 2. Bc4 {[%emt 0:00:02]} Nf6 {[%emt 0:00:02]} 3. Nc3 {[%emt 0:00:01]} Nxe4 {[%emt 0:00:07]} 4. Qh5 {[%emt 0:00:02]} Nd6 {[%emt 0:00:06]} 5. Bb3 {[%emt 0:00:01]} Be7 {[%emt 0:00:18]} 6. Qxe5 {[%emt 0:00:02]} (6. Nf3 {simplifies} Nc6 7. Nxe5 g6 8. Nxc6 bxc6 9. Qd1) 6... O-O {[%emt 0:00:05] C27: Vienna Game: 2...Nf6 3 Bc4 Nxe4.} 7. d3 {[%emt 0:00:02]} Bf6 {[%emt 0:00:04]} 8. Qf4 {[%emt 0:00:01]} Nc6 {[%emt 0:00:05] White is slightly better.} 9. Nge2 {[%emt 0:00:02] Inhibits Nd4. Active counter play!} (9. Nd5 $14 {should be considered.}) 9... b6 {[%emt 0:00:21]} (9... Ne7 $11) 10. O-O {[%emt 0:00:03]} (10. Nd5 {simplifies} Ne8 11. Nxf6+ Nxf6 12. O-O) 10... Bb7 {[%emt 0:00:00] [#]} 11. Be3 $146 {[%emt 0:00:07]} ({Predecessor:} 11. Nd5 Be5 12. Qg4 Kh8 13. Re1 Na5 14. Nec3 Nxb3 15. axb3 Re8 16. Bf4 Bxc3 17. Rxe8+ Nxe8 18. Nxc3 {1-0 (46) McLaughlin,K (2384)-Finnie,D (2073) ICCF email 2014}) 11... Na5 {[%emt 0:00:04]} (11... g6 $11 {is superior.}) 12. Bd5 $1 $14 {[%emt 0:00:02]} Bxd5 13. Nxd5 {[%emt 0:00:02]} Bxb2 {[%emt 0:00:32]} 14. Rab1 {[%emt 0:00:01]} Bf6 {[%emt 0:00:04]} 15. Ng3 {[%emt 0:00:02][%mdl 1024] Strongly threatening Nh5. White has compensation.} (15. Nxf6+ {simplifies} Qxf6 16. Qxf6 gxf6 17. Bd4) 15... Re8 {[%emt 0:00:10]} 16. Nh5 {[%emt 0:00:06]} Be5 {[%emt 0:00:17]} 17. Qg4 {[%emt 0:00:01] aiming for f4.} g6 $36 {[%emt 0:00:01][%mdl 2048] ...f5 is the strong threat. Black has good play.} 18. Ng3 {[%emt 0:00:35]} (18. Bf4 $11 Bh8 19. Bxd6 cxd6 20. Rfe1) 18... c6 $17 {[%emt 0:00:05]} 19. Nf4 {[%emt 0:00:05]} Bg7 {[%emt 0:00:09]} 20. Rfe1 {[%emt 0:00:06]} Nab7 {[%emt 0:00:03]} 21. h4 {[%emt 0:00:05]} (21. c4 $17) 21... Nc5 {[%emt 0:00:14]} (21... f5 $19 22. Qh3 Bf6) 22. h5 {[%emt 0:00:03][%cal Rh5g6]} Ne6 {[%emt 0:00:04]} 23. a4 {[%emt 0:00:40]} Qf6 {[%emt 0:00:18]} 24. Nh3 {[%emt 0:00:18]} Nf5 {[%emt 0:00:09]} ({Black should play} 24... Qc3 25. hxg6 fxg6) 25. Ne4 {[%emt 0:00:05]} (25. Nxf5 $142 Qxf5 26. Qxf5 gxf5 27. Bd2) 25... Qe7 {[%emt 0:00:03] And now ...Nxe3 would win.} 26. Bd2 {[%emt 0:00:16]} d5 {[%emt 0:00:04]} 27. Neg5 {[%emt 0:00:01]} Qd7 {[%emt 0:00:03]} 28. hxg6 {[%emt 0:00:10]} hxg6 {[%emt 0:00:01]} (28... Nxg5 {simplifies} 29. Nxg5 Rxe1+ 30. Rxe1 hxg6 31. a5 Re8) 29. Nf3 {[%emt 0:00:06]} Ned4 {[%emt 0:00:03]} 30. Nxd4 {[%emt 0:00:05]} Bxd4 {[%emt 0:00:02]} 31. Ng5 {[%emt 0:00:01]} Bg7 {[%emt 0:00:08]} (31... Rxe1+ {simplifies} 32. Rxe1 Re8 33. Nf3 Rxe1+ 34. Bxe1 Bf6) 32. Qh3 {[%emt 0:00:03]} Qd6 $2 {[%emt 0:00:09] [#]} ({Don't play} 32... Bh6 $6 33. g4 Bxg5 34. Bxg5 $11) (32... Rxe1+ $17 {and life is bright.} 33. Rxe1 Re8 34. Rxe8+ Qxe8 35. Qh7+ Kf8) 33. c3 {[%emt 0:00:23]} (33. Bc3 $1 $16 {White threatens Qh7+ and mate.} d4 (33... Rxe1+ 34. Rxe1) 34. Qh7+ Kf8 35. Bd2) 33... Bh6 {[%emt 0:00:05]} (33... Qd7 {simplifies} 34. Qh7+ Kf8 35. Rxe8+ Rxe8 36. a5 bxa5 37. Nf3 c5) 34. g4 {[%emt 0:00:05]} ({Much weaker is} 34. Nxf7 Rxe1+ 35. Rxe1 Kxf7 $17) 34... Bxg5 {[%emt 0:00:03]} 35. Bxg5 {[%emt 0:00:01]} Ng7 {[%emt 0:00:01]} 36. d4 {[%emt 0:00:05]} (36. Kg2 $11 {remains equal.}) 36... Re6 {[%emt 0:00:01]} (36... Rxe1+ $17 37. Rxe1 Re8 38. Rxe8+ Nxe8) 37. Rxe6 {[%emt 0:00:08]} (37. Kg2 $11 {keeps the balance.} f6 38. Rh1) 37... Qxe6 {[%emt 0:00:01]} 38. Qf3 {[%emt 0:00:04][%cal Oa4a5]} Re8 {[%emt 0:00:01]} 39. Bf6 {[%emt 0:00:02][%cal Oa4a5]} Qe4 {[%emt 0:00:01] Prevents a5.} 40. Qg3 {[%emt 0:00:01][%mdl 8192]} (40. Qxe4 $17 Rxe4 41. g5) 40... Qxb1+ $19 {[%emt 0:00:01]} 41. Kg2 {[%emt 0:00:02]} Qe4+ {[%emt 0:00:01]} 42. Kh2 {[%emt 0:00:01]} Re6 {[%emt 0:00:02]} 43. Qb8+ {[%emt 0:00:03]} Kh7 {[%emt 0:00:02]} 44. g5 {[%emt 0:00:08]} Qh4+ {[%emt 0:00:03]} 45. Kg2 {[%emt 0:00:01]} Rxf6 {[%emt 0:00:02]} 46. gxf6 {[%emt 0:00:01]} Qxf6 {[%emt 0:00:01]} 47. Qxa7 {[%emt 0:00:01]} Qg5+ {[%emt 0:00:03]} 48. Kf1 {[%emt 0:00:01]} Qc1+ {[%emt 0:00:01]} 49. Kg2 {[%emt 0:00:01]} Qxc3 {[%emt 0:00:01]} 50. Qxb6 {[%emt 0:00:01]} Nf5 {[%emt 0:00:04] ( -> ...Nh4+)} 51. Qc7 {[%emt 0:00:02]} Kg8 {[%emt 0:00:10]} 52. a5 {[%emt 0:00:02]} Nh4+ {[%emt 0:00:02]} 53. Kh2 {[%emt 0:00:01]} Qf3 $2 {[%emt 0:00:04]} (53... Qxd4 $19 54. Kh3 Nf5) 54. Qg3 {[%emt 0:00:01][%mdl 8192]} (54. Qd8+ $15 Kg7 55. Qxh4) 54... Qa3 $4 {[%emt 0:00:03][%mdl 8192] [#]} 55. Qxa3 {[%emt 0:00:01] Both players deserved the win here.   Weighted Error Value: White=0.77/Black=0.51} 1-0

[Event "Romanian Team Blitz Open 2022"]
[Site "Sebes"]
[Date "2022.12.04"]
[Round "1.5"]
[White "Ardelean, George-Catalin"]
[Black "Dragomirescu, Robin-Alexandru"]
[Result "1-0"]
[ECO "B01"]
[WhiteElo "2473"]
[BlackElo "2337"]
[Annotator "TA"]
[PlyCount "88"]
[EventDate "2022.12.04"]
[EventType "blitz"]
[EventCountry "ROU"]
[SourceTitle "playchess.com"]
[Source "ChessBase"]
[SourceQuality "1"]
[TimeControl "180+2"]

{[%evp 17,88,21,31,22,34,25,29,24,34,34,36,42,81,79,79,38,36,37,37,34,33,-11,33,33,37,36,38,39,39,28,39,23,46,46,46,46,46,46,46,47,45,43,56,56,64,60,58,44,56,56,58,58,56,23,37,37,57,56,56,56,56,56,56,56,56,56,56,56,56,56,56,50,149]} 1. d4 {[%emt 0:00:03]} Nc6 {[%emt 0:00:10]} 2. e4 {[%emt 0:00:16]} d5 {[%emt 0:00:13]} 3. exd5 {[%emt 0:00:02]} Qxd5 {[%emt 0:00:02]} 4. Nf3 {[%emt 0:00:01]} e5 {[%emt 0:00:04]} 5. Nc3 {[%emt 0:00:02]} Bb4 {[%emt 0:00:02]} 6. Bd2 {[%emt 0:00:02]} Bxc3 {[%emt 0:00:01]} 7. Bxc3 {[%emt 0:00:02]} e4 {[%emt 0:00:02]} 8. Ne5 {[%emt 0:00:01]} Nxe5 {[%emt 0:00:01]} 9. dxe5 {[%emt 0:00:01]} Ne7 {[%emt 0:00:02]} 10. Qe2 $1 {[%emt 0:00:40] 10.Qe2 is better than 10.Qxd5. B01: Scandinavian Defence.} Bf5 {[%emt 0:00:23]} 11. Rd1 {[%emt 0:00:10]} Qc6 {[%emt 0:00:16]} 12. Qb5 {[%emt 0:00:41] Inhibits Nd5. White has an edge.} O-O {[%emt 0:00:07]} 13. Qxc6 {[%emt 0:00:01]} Nxc6 {[%emt 0:00:03]} 14. Bb5 {[%emt 0:00:01] [#]} a6 $146 {[%emt 0:00:17]} ({Predecessor:} 14... Bg4 15. Rd2 Rfd8 16. Bxc6 bxc6 17. h3 Bh5 18. g4 Bg6 19. Rxd8+ Rxd8 20. Ke2 Kf8 {1-0 (32) Lucas,A (2331)-Korpa,B (2545) Guimaraes 2021}) 15. Bxc6 {[%emt 0:00:02]} bxc6 {[%emt 0:00:02]} 16. h3 {[%emt 0:00:04]} e3 {[%emt 0:00:13]} 17. f3 {[%emt 0:00:25]} Bxc2 {[%emt 0:00:10]} 18. Rd7 {[%emt 0:00:06]} Rfd8 {[%emt 0:00:12]} 19. Rxd8+ {[%emt 0:00:02]} (19. Rxc7 $2 {is the wrong capture.} Rd1+ 20. Ke2 Rxh1 $19) 19... Rxd8 $14 {[%emt 0:00:01][%mdl 4096] Endgame KRB-KRB} 20. Ke2 {[%emt 0:00:00] Inhibits Rd1.} Bf5 {[%emt 0:00:36]} 21. Kxe3 {[%emt 0:00:02]} Be6 {[%emt 0:00:03]} 22. a3 {[%emt 0:00:08]} c5 {[%emt 0:00:14]} 23. Rc1 {[%emt 0:00:05]} c4 {[%emt 0:00:03]} 24. Bd4 {[%emt 0:00:11]} Rd5 {[%emt 0:00:11]} 25. Rxc4 {[%emt 0:00:10]} Rxe5+ $1 {[%emt 0:00:02][%mdl 64] [#]} 26. Bxe5 {[%emt 0:00:00]} Bxc4 {[%emt 0:00:02]} 27. Bxc7 {[%emt 0:00:01] KB-KB} Bf1 {[%emt 0:00:01]} 28. Kf2 {[%emt 0:00:01]} Bc4 {[%emt 0:00:02]} 29. h4 {[%emt 0:00:03]} h5 {[%emt 0:00:08]} 30. Ke3 {[%emt 0:00:00]} Kf8 {[%emt 0:00:06]} 31. Kd4 {[%emt 0:00:01]} Bf1 {[%emt 0:00:02]} 32. g3 {[%emt 0:00:03]} Ke7 {[%emt 0:00:04]} 33. Kc5 {[%emt 0:00:02]} Kd7 {[%emt 0:00:04]} 34. Kb6 {[%emt 0:00:01]} Be2 {[%emt 0:00:04]} 35. f4 {[%emt 0:00:01]} g6 {[%emt 0:00:04]} 36. Be5 {[%emt 0:00:03] White is slightly better.} Kc8 {[%emt 0:00:02]} 37. b4 {[%emt 0:00:03]} Bb5 {[%emt 0:00:02]} 38. a4 {[%emt 0:00:12]} Bxa4 {[%emt 0:00:02]} 39. Kxa6 {[%emt 0:00:01]} Bd1 {[%emt 0:00:02]} 40. b5 {[%emt 0:00:02]} Be2 {[%emt 0:00:00]} 41. Kb6 {[%emt 0:00:01]} Bf1 {[%emt 0:00:02]} 42. Kc6 {[%emt 0:00:04]} Bg2+ {[%emt 0:00:05]} 43. Kd6 {[%emt 0:00:02]} Be4 {[%emt 0:00:03]} 44. Ke7 {[%emt 0:00:05]} f5 {[%emt 0:00:05] Weighted Error Value: White=0.04 (flawless) /Black=0.05 (flawless)} (44... Bd5 $14) 1-0